fUSD/lending_fUSD_20260605
["ID","MTS","AMOUNT","RATE_DAILY","PERIOD"]
[424203824,1780657843000,-150.0,0.00014714,2]
[424203804,1780657843000,-2000.0,0.00014633,2]
[424203823,1780657843000,-150.0,0.00014714,2]
[424203855,1780657843000,-376.0,0.00014773,2]
[424203799,1780657843000,-174.85406556,0.00014608,2]
[424203800,1780657843000,-150.0,0.00014612,2]
[424203801,1780657843000,-10000.0,0.0001462,2]
[424203802,1780657843000,-174.85406556,0.00014623,2]
[424203803,1780657843000,-150.0,0.00014627,2]
[424203805,1780657843000,-150.0,0.00014634,2]
[424203806,1780657843000,-174.85406556,0.00014638,2]
[424203808,1780657843000,-5708.1773736,0.00014644,2]
[424203809,1780657843000,-150.0,0.00014646,2]
[424203810,1780657843000,-174.85406556,0.00014653,2]
[424203813,1780657843000,-10000.0,0.00014669,2]
[424203814,1780657843000,-150.0,0.00014671,2]
[424203812,1780657843000,-174.85406556,0.00014668,2]
[424203811,1780657843000,-150.0,0.00014665,2]
[424203807,1780657843000,-150.0,0.00014638,2]
[424203816,1780657843000,-150.0,0.00014678,2]
[424203826,1780657843000,-150.0,0.00014719,2]
[424203815,1780657843000,-150.0,0.00014671,2]
[424203828,1780657843000,-376.0,0.00014727,2]
[424203820,1780657843000,-174.85406556,0.00014699,2]
[424203819,1780657843000,-150.0,0.00014692,2]
[424203818,1780657843000,-150.0,0.00014687,2]
[424203817,1780657843000,-174.85406556,0.00014684,2]
[424203827,1780657843000,-150.0,0.00014722,2]
[424203825,1780657843000,-174.85406556,0.00014714,2]
[424203847,1780657843000,-174.85406556,0.00014759,2]
[424203868,1780657843000,-376.0,0.00014784,2]
[424203858,1780657843000,-376.0,0.00014775,2]
[424203891,1780657843000,-174.85406556,0.00014805,2]
[424203887,1780657843000,-151.0,0.000148,2]
[424203886,1780657843000,-151.0,0.000148,2]
[424203892,1780657843000,-150.0,0.00014806,2]
[424203888,1780657843000,-200.0,0.000148,5]
[424203893,1780657843000,-376.0,0.00014809,2]
[424203895,1780657843000,-376.0,0.00014813,2]
[424203905,1780657843000,-150.0,0.00014829,2]
[424203896,1780657843000,-376.0,0.00014817,2]
[424203900,1780657843000,-174.85406556,0.0001482,2]
[424203894,1780657843000,-150.0,0.0001481,2]
[424203883,1780657843000,-200.0,0.000148,2]
[424203901,1780657843000,-376.0,0.0001482,2]
[424203906,1780657843000,-174.85406556,0.00014835,2]
[424203897,1780657843000,-1500.0,0.00014818,2]
[424203899,1780657843000,-376.0,0.00014819,2]
[424203904,1780657843000,-150.0,0.00014829,2]
[424203898,1780657843000,-1030.0,0.00014818,2]
[424203907,1780657843000,-376.0,0.00014839,2]
[424203909,1780657843000,-260.0,0.00014848,2]
[424203911,1780657843000,-376.0,0.00014849,2]
[424203910,1780657843000,-10000.0,0.00014848,2]
[424203908,1780657843000,-376.0,0.0001484,2]
[424203848,1780657843000,-376.0,0.00014762,2]
[424203902,1780657843000,-376.0,0.00014824,2]
[424203890,1780657843000,-376.0,0.00014801,2]
[424203903,1780657843000,-150.0,0.00014826,2]
[424203884,1780657843000,-1548.0,0.000148,2]
[424203856,1780657843000,-174.85406556,0.00014774,2]
[424203889,1780657843000,-376.0,0.00014801,2]
[424203857,1780657843000,-376.0,0.00014775,2]
[424203867,1780657843000,-376.0,0.00014784,2]
[424203869,1780657843000,-376.0,0.00014789,2]
[424203860,1780657843000,-376.0,0.00014778,2]
[424203863,1780657843000,-150.0,0.00014782,2]
[424203859,1780657843000,-376.0,0.00014776,2]
[424203862,1780657843000,-376.0,0.00014781,2]
[424203861,1780657843000,-376.0,0.0001478,2]
[424203871,1780657843000,-376.0,0.00014795,2]
[424203881,1780657843000,-3880.77,0.000148,2]
[424203865,1780657843000,-376.0,0.00014784,2]
[424203872,1780657843000,-376.0,0.00014796,2]
[424203885,1780657843000,-152.0,0.000148,2]
[424203870,1780657843000,-174.85406556,0.0001479,2]
[424203878,1780657843000,-3880.77,0.000148,2]
[424203880,1780657843000,-221.95167671,0.000148,2]
[424203877,1780657843000,-3880.77,0.000148,2]
[424203879,1780657843000,-3880.77,0.000148,2]
[424203882,1780657843000,-3880.77,0.000148,2]
[424203874,1780657843000,-200.0,0.000148,2]
[424203873,1780657843000,-150.0,0.00014799,2]
[424203875,1780657843000,-200.0,0.000148,2]
[424203876,1780657843000,-200.0,0.000148,2]
[424203960,1780657844000,-200.0,0.000149,5]
[424203943,1780657844000,-376.0,0.00014894,2]
[424203933,1780657844000,-150.0,0.00014879,2]
[424203944,1780657844000,-174.85406556,0.00014895,2]
[424203957,1780657844000,-8769.5766767,0.000149,3]
[424203958,1780657844000,-158.70286579,0.000149,2]
[424203947,1780657844000,-376.0,0.00014899,2]
[424203964,1780657844000,-5708.1773736,0.000149,2]
[424203949,1780657844000,-25000.0,0.000149,3]
[424203962,1780657844000,-573.73141255,0.000149,2]
[424203951,1780657844000,-25000.0,0.000149,3]
[424203954,1780657844000,-25000.0,0.000149,3]
[424203977,1780657844000,-376.0,0.00014916,2]
[424203966,1780657844000,-376.0,0.00014902,2]
[424203970,1780657844000,-150.0,0.00014906,2]
[424203968,1780657844000,-376.0,0.00014903,2]
[424203972,1780657844000,-150.0,0.00014907,2]
[424203974,1780657844000,-174.85406556,0.00014911,2]
[424203975,1780657844000,-376.0,0.00014911,2]
[424203973,1780657844000,-150.0,0.00014907,2]
[424203982,1780657844000,-376.0,0.00014921,2]
[424203983,1780657844000,-376.0,0.00014923,2]
[424203979,1780657844000,-150.0,0.00014918,2]
[424203942,1780657844000,-25000.0,0.00014891,3]
[424203953,1780657844000,-25000.0,0.000149,3]
[424203945,1780657844000,-150.0,0.00014898,2]
[424203913,1780657844000,-376.0,0.0001485,2]
[424203941,1780657844000,-376.0,0.00014891,2]
[424203976,1780657844000,-376.0,0.00014913,2]
[424203914,1780657844000,-150.0,0.0001485,2]
[424203912,1780657844000,-376.0,0.00014849,2]
[424203915,1780657844000,-150.0,0.0001485,2]
[424203916,1780657844000,-174.85406556,0.0001485,2]
[424203918,1780657844000,-150.0,0.00014852,2]
[424203917,1780657844000,-376.0,0.00014851,2]
[424203919,1780657844000,-376.0,0.00014853,2]
[424203921,1780657844000,-150.0,0.00014854,2]
[424203920,1780657844000,-376.0,0.00014853,2]
[424203928,1780657844000,-376.0,0.00014871,2]
[424203931,1780657844000,-376.0,0.00014879,2]
[424203923,1780657844000,-376.0,0.00014865,2]
[424203924,1780657844000,-174.85406556,0.00014865,2]
[424203926,1780657844000,-150.0,0.00014866,2]
[424203927,1780657844000,-376.0,0.00014868,2]
[424203925,1780657844000,-376.0,0.00014866,2]
[424203930,1780657844000,-376.0,0.00014876,2]
[424203922,1780657844000,-376.0,0.00014864,2]
[424203929,1780657844000,-376.0,0.00014873,2]
[424203932,1780657844000,-200.0,0.00014879,2]
[424203934,1780657844000,-174.85406556,0.0001488,2]
[424203936,1780657844000,-376.0,0.00014888,2]
[424203938,1780657844000,-376.0,0.00014888,2]
[424203935,1780657844000,-25000.0,0.00014882,3]
[424203939,1780657844000,-500.0,0.0001489,19]
[424203980,1780657844000,-376.0,0.00014919,2]
[424204015,1780657844000,-376.0,0.0001497,2]
[424203981,1780657844000,-376.0,0.0001492,2]
[424204013,1780657844000,-376.0,0.00014968,2]
[424204012,1780657844000,-376.0,0.00014967,2]
[424204025,1780657844000,-150.0,0.00014986,2]
[424204040,1780657844000,-376.0,0.00014998,2]
[424204017,1780657844000,-174.85406556,0.00014971,2]
[424204027,1780657844000,-153.80809804,0.00014986,2]
[424204014,1780657844000,-345.50562743,0.00014969,2]
[424204016,1780657844000,-376.0,0.0001497,2]
[424204024,1780657844000,-150.0,0.00014986,2]
[424204020,1780657844000,-10000.0,0.00014975,2]
[424204018,1780657844000,-376.0,0.00014973,2]
[424204011,1780657844000,-376.0,0.00014966,2]
[424204019,1780657844000,-376.0,0.00014974,2]
[424204029,1780657844000,-279.63657692,0.00014986,2]
[424204035,1780657844000,-174.85406556,0.00014986,2]
[424204034,1780657844000,-150.0,0.00014986,2]
[424204032,1780657844000,-150.0,0.00014986,2]
[424204036,1780657844000,-376.0,0.0001499,2]
[424204030,1780657844000,-150.0,0.00014986,2]
[424204033,1780657844000,-150.0,0.00014986,2]
[424204038,1780657844000,-376.0,0.00014994,2]
[424204037,1780657844000,-1000.0,0.0001499,2]
[424204039,1780657844000,-376.0,0.00014997,2]
[424204041,1780657844000,-376.0,0.00014999,2]
[424204021,1780657844000,-376.0,0.0001498,2]
[424204010,1780657844000,-376.0,0.00014961,2]
[424204031,1780657844000,-150.0,0.00014986,2]
[424204005,1780657844000,-174.85406556,0.00014956,2]
[424204009,1780657844000,-150.0,0.0001496,2]
[424203984,1780657844000,-376.0,0.00014925,2]
[424203985,1780657844000,-174.85406556,0.00014926,2]
[424203986,1780657844000,-150.0,0.00014926,2]
[424203989,1780657844000,-376.0,0.00014932,2]
[424203993,1780657844000,-376.0,0.00014936,2]
[424203992,1780657844000,-376.0,0.00014935,2]
[424203987,1780657844000,-376.0,0.0001493,2]
[424203994,1780657844000,-376.0,0.00014939,2]
[424203996,1780657844000,-174.85406556,0.00014941,2]
[424203995,1780657844000,-376.0,0.0001494,2]
[424203988,1780657844000,-376.0,0.00014931,2]
[424203978,1780657844000,-736.0,0.00014918,2]
[424203991,1780657844000,-376.0,0.00014933,2]
[424203990,1780657844000,-150.0,0.00014933,2]
[424204004,1780657844000,-376.0,0.00014954,2]
[424204007,1780657844000,-376.0,0.00014957,2]
[424204003,1780657844000,-376.0,0.00014952,2]
[424204002,1780657844000,-376.0,0.0001495,2]
[424204008,1780657844000,-376.0,0.00014959,2]
[424204006,1780657844000,-376.0,0.00014957,2]
[424203998,1780657844000,-376.0,0.00014944,2]
[424203999,1780657844000,-200.0,0.00014948,2]
[424204000,1780657844000,-200.0,0.00014948,2]
[424204001,1780657844000,-200.0,0.00014948,2]
[424203997,1780657844000,-150.0,0.00014942,2]
[424204044,1780657845000,-500.0,0.00014999,21]
[424204042,1780657845000,-500.0,0.00014999,20]
[424204045,1780657845000,-500.0,0.00014999,21]
[424204048,1780657845000,-308.16421547,0.00014999,21]
[424204046,1780657845000,-500.0,0.00014999,21]
[424204047,1780657845000,-500.0,0.00014999,21]
[424204050,1780657845000,-2604.49635846,0.00015,2]
[424204043,1780657845000,-500.0,0.00014999,21]
[424204051,1780657845000,-1687.49920849,0.00015,2]
[424204049,1780657845000,-1461801.7329869,0.00015,2]
[424204055,1780657845000,-13258.75451997,0.00015,2]
[424204052,1780657845000,-13887.05835941,0.00015,2]
[424204063,1780657845000,-6537.56239738,0.00015,2]
[424204062,1780657845000,-1279.40585,0.00015,2]
[424204059,1780657845000,-498.22691383,0.00013472,2]
[424204056,1780657845000,-924.67395998,0.00015,2]
[424204057,1780657845000,-2641.77308617,0.00013472,2]
[424204060,1780657845000,-89.44323545,0.00015,2]
[424204061,1780657845000,-4501.82466908,0.00015,2]
[424204058,1780657845000,-501.0,0.00013472,2]
[424204098,1780658107000,-150.16546799,0.0001,2]
[424204099,1780658107000,-215.77576141,0.00010511,2]
[424204101,1780658107000,-150.0,0.00010729,2]
[424204100,1780658107000,-150.0,0.00010624,2]
[424204102,1780658107000,-150.0,0.00010835,2]
[424204104,1780658107000,-150.0,0.00011045,2]
[424204106,1780658107000,-160.0,0.00012281,2]
[424204105,1780658107000,-615.54326986,0.00012277,2]
[424204103,1780658107000,-150.0,0.0001094,2]
[424204107,1780658108000,-352.0,0.00012494,2]
[424204108,1780658108000,-500.0,0.00012495,2]
[424204109,1780658108000,-500.0,0.00012495,2]
[424204110,1780658108000,-434.054633,0.00012495,2]
[424204111,1780658108000,-292.58906701,0.00012495,2]
[424204113,1780658108000,-500.0,0.00012495,2]
[424204115,1780658108000,-418.27348342,0.00012495,2]
[424204114,1780658108000,-500.0,0.00012495,2]
[424204116,1780658108000,-344.26135951,0.00012495,2]
[424204112,1780658108000,-160.44758815,0.00012495,2]
[424204117,1780658108000,-3257.05483764,0.00012496,2]
[424204118,1780658160000,-150.0,0.0001115,2]
[424204119,1780658214000,-150.0,0.00011255,2]
[424204120,1780658268000,-158.0,0.00011361,2]
[424204121,1780658321000,-200.0,0.000117,4]
[424204122,1780658375000,-400.0,0.000118,4]
[424204123,1780658429000,-1369.39,0.00011689,2]
[424204125,1780658482000,-1024.51,0.00011633,2]
[424204127,1780658535000,-1852.42,0.00011629,2]
[424204128,1780658589000,-153.8382431,0.00010699,2]
[424204129,1780658848000,200.0,0.000108,3]
[424204130,1780658850000,400.0,0.000109,3]
[424204132,1780658921000,-2057.57894706,0.00010486,2]
[424204131,1780658921000,-229.507573,0.00010386,2]
[424204136,1780659032000,-157.5859426,0.00010485,2]
[424204138,1780659032000,-181.501,0.00010486,2]
[424204137,1780659032000,-718.05805294,0.00010486,2]
[424204140,1780659032000,-153.00504866,0.00010672,2]
[424204141,1780659032000,-181.96413657,0.0001069,2]
[424204139,1780659032000,-153.00504866,0.00010599,2]
[424204143,1780659032000,-150.0,0.00010699,2]
[424204144,1780659032000,-607.68677017,0.00010699,2]
[424204147,1780659032000,-47471.22,0.000107,2]
[424204146,1780659032000,-2664.5816535,0.000107,2]
[424204145,1780659032000,-554.8123469,0.00010699,2]
[424204142,1780659032000,-1200.0,0.00010699,2]
[424204149,1780659033000,-9093.75559568,0.000107,2]
[424204148,1780659033000,-149684.16575559,0.000107,2]
[424204203,1780659040000,-9999.99,0.00011099,2]
[424204196,1780659040000,-36093.85107487,0.00011074,2]
[424204201,1780659040000,-499.99,0.00011074,2]
[424204205,1780659040000,-11303.45340171,0.00011099,2]
[424204210,1780659040000,-1977.57,0.00011481,2]
[424204211,1780659040000,-200.0,0.00011602,2]
[424204209,1780659040000,-1790.6695259,0.00011338,2]
[424204213,1780659040000,-2903.61,0.00011629,2]
[424204199,1780659040000,-9999.99,0.00011074,2]
[424204197,1780659040000,-9999.99,0.00011074,2]
[424204200,1780659040000,-7224.23,0.00011074,2]
[424204191,1780659040000,-158.70286579,0.00010844,2]
[424204204,1780659040000,-299.99,0.00011099,2]
[424204202,1780659040000,-13668.67502179,0.00011099,2]
[424204207,1780659040000,-11303.45340167,0.00011267,2]
[424204208,1780659040000,-13668.67502178,0.00011267,2]
[424204206,1780659040000,-1977.57,0.00011207,2]
[424204195,1780659040000,-1161.4,0.00010934,2]
[424204193,1780659040000,-1977.57,0.00010934,2]
[424204189,1780659040000,-1305606.48402259,0.000107,2]
[424204194,1780659040000,-150.99,0.00010934,2]
[424204192,1780659040000,-1790.66952596,0.000109,2]
[424204190,1780659040000,-153.00504866,0.00010744,2]
[424204198,1780659040000,-9999.99,0.00011074,2]
[424204212,1780659040000,-150.0,0.00011605,2]
[424204220,1780659040000,-1977.57,0.00011754,2]
[424204215,1780659040000,-2000.0,0.00011658,2]
[424204236,1780659040000,-181.96413657,0.00012486,2]
[424204214,1780659040000,-3726.28,0.00011629,2]
[424204239,1780659040000,-2062228.76179622,0.00012496,2]
[424204237,1780659040000,-150.0,0.00012495,2]
[424204235,1780659040000,-215.77576141,0.00012466,2]
[424204234,1780659040000,-500.0,0.00012433,2]
[424204230,1780659040000,-1000.0,0.00012216,2]
[424204228,1780659040000,-13668.67502178,0.00012114,2]
[424204229,1780659040000,-337.29175434,0.00012156,2]
[424204231,1780659040000,-680.73,0.00012329,2]
[424204226,1780659040000,-1977.57,0.00012027,2]
[424204238,1780659040000,-250.0,0.00012495,2]
[424204225,1780659040000,-153.35,0.00011971,2]
[424204227,1780659040000,-11303.45340167,0.00012113,2]
[424204217,1780659040000,-13668.67502178,0.00011691,2]
[424204219,1780659040000,-255.0,0.00011737,2]
[424204216,1780659040000,-11303.45340167,0.0001169,2]
[424204222,1780659040000,-900.0,0.000118,4]
[424204218,1780659040000,-700.0,0.000117,4]
[424204233,1780659040000,-157.05673653,0.00012433,2]
[424204221,1780659040000,-1680.0,0.00011769,2]
[424204223,1780659040000,-1100.0,0.000119,4]
[424204224,1780659040000,-1790.6695259,0.00011931,2]
[424204232,1780659040000,-631.17292067,0.00012429,2]
[424204255,1780659043000,-208.48,0.00012567,2]
[424204265,1780659043000,-500.0,0.00012707,2]
[424204268,1780659043000,-2351.0,0.00012946,2]
[424204263,1780659043000,-500.0,0.00012695,7]
[424204262,1780659043000,-500.0,0.00012695,6]
[424204259,1780659043000,-500.0,0.00012695,3]
[424204260,1780659043000,-500.0,0.00012695,4]
[424204258,1780659043000,-500.0,0.00012695,2]
[424204249,1780659043000,-423859.20055305,0.00012496,2]
[424204251,1780659043000,-1790.6695259,0.00012525,2]
[424204254,1780659043000,-160.0,0.00012542,2]
[424204256,1780659043000,-33256.6326,0.00012596,2]
[424204253,1780659043000,-13668.67502178,0.00012537,2]
[424204252,1780659043000,-11303.45340167,0.00012536,2]
[424204250,1780659043000,-221.95167671,0.00012496,2]
[424204248,1780659043000,-10513.95859988,0.00012496,2]
[424204247,1780659043000,-141.02421321,0.00012496,2]
[424204266,1780659043000,-433.0,0.00012871,2]
[424204257,1780659043000,-2000.0,0.00012596,2]
[424204267,1780659043000,-158.70286579,0.00012872,2]
[424204282,1780659043000,-169.1,0.00013353,2]
[424204261,1780659043000,-500.0,0.00012695,5]
[424204264,1780659043000,-166.71813833,0.00012696,2]
[424204288,1780659043000,-13668.67502178,0.00013384,2]
[424204285,1780659043000,-169.1,0.00013353,2]
[424204283,1780659043000,-169.1,0.00013353,2]
[424204286,1780659043000,-169.0,0.00013353,2]
[424204284,1780659043000,-169.1,0.00013353,2]
[424204281,1780659043000,-169.1,0.00013353,2]
[424204278,1780659043000,-152.0,0.00013296,2]
[424204279,1780659043000,-169.1,0.00013353,2]
[424204287,1780659043000,-11303.45340167,0.00013382,2]
[424204273,1780659043000,-1790.6695259,0.00013119,2]
[424204275,1780659043000,-292.0,0.00013151,2]
[424204276,1780659043000,-500.0,0.00013252,8]
[424204277,1780659043000,-166.71813833,0.00013272,2]
[424204271,1780659043000,-443.0,0.00013028,2]
[424204272,1780659043000,-2000.0,0.00013115,2]
[424204269,1780659043000,-11303.45340167,0.00012959,2]
[424204280,1780659043000,-169.1,0.00013353,2]
[424204270,1780659043000,-13668.67502178,0.00012961,2]
[424204274,1780659043000,-150.0,0.00013151,2]
[424204305,1780659044000,-150.0,0.00013514,2]
[424204310,1780659044000,-174.85406556,0.00013548,2]
[424204306,1780659044000,-174.85406556,0.00013518,2]
[424204312,1780659044000,-174.85406556,0.00013563,2]
[424204313,1780659044000,-150.0,0.00013567,2]
[424204314,1780659044000,-150.0,0.00013568,2]
[424204317,1780659044000,-174.85406556,0.00013578,2]
[424204311,1780659044000,-150.0,0.00013556,2]
[424204315,1780659044000,-150.0,0.00013576,2]
[424204318,1780659044000,-174.85406556,0.00013594,2]
[424204326,1780659044000,-174.85406556,0.00013624,2]
[424204321,1780659044000,-174.85406556,0.00013609,2]
[424204329,1780659044000,-500.0,0.0001363,2]
[424204308,1780659044000,-174.85406556,0.00013533,2]
[424204316,1780659044000,-150.0,0.00013576,2]
[424204309,1780659044000,-150.0,0.00013541,2]
[424204295,1780659044000,-150.0,0.00013488,2]
[424204304,1780659044000,-174.85406556,0.00013503,2]
[424204290,1780659044000,-165.88679775,0.00013425,2]
[424204289,1780659044000,-150.0,0.00013425,2]
[424204291,1780659044000,-150.0,0.00013488,2]
[424204293,1780659044000,-150.0,0.00013488,2]
[424204303,1780659044000,-150.0,0.00013488,2]
[424204292,1780659044000,-150.24681016,0.00013488,2]
[424204307,1780659044000,-150.0,0.00013532,2]
[424204294,1780659044000,-150.0,0.00013488,2]
[424204296,1780659044000,-150.0,0.00013488,2]
[424204297,1780659044000,-150.0,0.00013488,2]
[424204302,1780659044000,-174.85406556,0.00013488,2]
[424204299,1780659044000,-150.0,0.00013488,2]
[424204301,1780659044000,-150.32951388,0.00013488,2]
[424204300,1780659044000,-150.0,0.00013488,2]
[424204328,1780659044000,-500.0,0.0001363,2]
[424204320,1780659044000,-577.0,0.000136,3]
[424204298,1780659044000,-150.0,0.00013488,2]
[424204319,1780659044000,-150.0,0.00013595,2]
[424204344,1780659044000,-500.0,0.00013698,2]
[424204346,1780659044000,-205.25819266,0.00013698,2]
[424204345,1780659044000,-500.0,0.00013698,2]
[424204350,1780659044000,-80.23700979,0.00013698,2]
[424204347,1780659044000,-500.0,0.00013698,2]
[424204349,1780659044000,-500.0,0.00013698,2]
[424204342,1780659044000,-500.0,0.00013698,2]
[424204351,1780659044000,-419.76299021,0.00013698,2]
[424204353,1780659044000,-251.94190151,0.00013698,2]
[424204354,1780659044000,-167.8210887,0.00013698,2]
[424204356,1780659044000,-384.95927121,0.00013698,2]
[424204355,1780659044000,-500.0,0.00013698,2]
[424204357,1780659044000,-115.04072879,0.00013698,2]
[424204358,1780659044000,-197.82063194,0.00013698,2]
[424204352,1780659044000,-80.23700979,0.00013698,2]
[424204343,1780659044000,-500.19382862,0.00013698,2]
[424204348,1780659044000,-500.0,0.00013698,2]
[424204336,1780659044000,-150.0,0.00013664,2]
[424204322,1780659044000,-150.0,0.0001362,2]
[424204337,1780659044000,-174.85406556,0.00013669,2]
[424204323,1780659044000,-150.0,0.00013621,2]
[424204324,1780659044000,-150.0,0.00013624,2]
[424204330,1780659044000,-500.0,0.0001363,2]
[424204334,1780659044000,-174.85406556,0.00013654,2]
[424204332,1780659044000,-150.0,0.00013645,2]
[424204327,1780659044000,-500.0,0.0001363,2]
[424204331,1780659044000,-174.85406556,0.00013639,2]
[424204333,1780659044000,-150.0,0.00013648,2]
[424204339,1780659044000,-174.85406556,0.00013684,2]
[424204340,1780659044000,-150.0,0.00013692,2]
[424204325,1780659044000,-150.0,0.00013624,2]
[424204338,1780659044000,-150.0,0.00013675,2]
[424204341,1780659044000,-500.0,0.00013698,2]
[424204335,1780659044000,-150.0,0.00013664,2]
[424204371,1780659046000,-133.82063194,0.00013698,2]
[424204370,1780659046000,-302.17936806,0.00013698,2]
[424204377,1780659097000,-500.0,0.00010485,2]
[424204378,1780659607000,-399.2584917,0.00010484,2]
[424204379,1780659661000,-500.0,0.00010483,2]
[424204380,1780659714000,-500.0,0.00010483,2]
[424204381,1780659767000,-500.0,0.00010483,2]
[424204382,1780659820000,-500.0,0.00010483,2]
[424204383,1780659874000,-500.0,0.00010483,2]
[424204384,1780659928000,-425.38073912,0.00010484,2]
[424204385,1780659981000,-500.0,0.00010484,2]
[424204386,1780660034000,-256.55066727,0.00010484,2]
[424204387,1780660088000,-1200.0,0.00010484,2]
[424204388,1780660097000,150.0,0.00011009,7]
[424204392,1780660099000,392.80263631,0.00011324,7]
[424204391,1780660099000,2938.33554814,0.00010485,7]
[424204390,1780660099000,261.86842418,0.00010695,7]
[424204389,1780660099000,152.24153477,0.00011009,7]
[424204393,1780660099000,2938.33554814,0.00010695,7]
[424204394,1780660100000,2938.33554814,0.00011009,7]
[424204395,1780660101000,1220.88718193,0.00011324,7]
[424204396,1780660101000,1717.44836621,0.00011324,7]
[424204398,1780660202000,-1200.0,0.00010484,2]
[424204399,1780660202000,-2529.19332294,0.00010485,2]
[424204400,1780660202000,-3729.19332294,0.00010485,2]
[424204401,1780660202000,-469.67771112,0.00010485,2]
[424204402,1780660225000,5530.0,0.000115,5]
[424204435,1780660232000,-557.16080543,0.00013151,2]
[424204428,1780660232000,-215.77576141,0.00012958,2]
[424204426,1780660232000,-2478.0125959,0.00012921,2]
[424204433,1780660232000,-320.37198597,0.00013151,2]
[424204429,1780660232000,-160.0,0.00012992,2]
[424204432,1780660232000,-444.0,0.00013151,2]
[424204438,1780660232000,-1149.99016759,0.00013216,2]
[424204431,1780660232000,-250.0,0.00013076,2]
[424204434,1780660232000,-135.62801403,0.00013151,2]
[424204437,1780660232000,-688.86301301,0.00013216,2]
[424204439,1780660232000,-5032.08514418,0.00013216,2]
[424204436,1780660232000,-572.0835884,0.00013216,2]
[424204446,1780660232000,-5007.12769702,0.00013408,2]
[424204430,1780660232000,-11344.90742289,0.00013,2]
[424204427,1780660232000,-227.39720448,0.0001295,2]
[424204421,1780660232000,-2351.0,0.00012686,2]
[424204417,1780660232000,-161.47684765,0.00012598,2]
[424204441,1780660232000,-417.51182976,0.00013216,2]
[424204409,1780660232000,-29271.935643,0.00010485,2]
[424204410,1780660232000,-1680.0,0.00011532,2]
[424204414,1780660232000,-2000.0,0.00012293,2]
[424204413,1780660232000,-416.12,0.00012286,2]
[424204411,1780660232000,-2938.33554818,0.00011743,7]
[424204425,1780660232000,-341.79361313,0.00012899,2]
[424204415,1780660232000,-749.38,0.000123,2]
[424204423,1780660232000,-200.0,0.00012892,2]
[424204420,1780660232000,-4900.76,0.00012598,2]
[424204424,1780660232000,-251.92867056,0.00012898,2]
[424204422,1780660232000,-166.66,0.00012691,2]
[424204419,1780660232000,-150.99,0.00012598,2]
[424204416,1780660232000,-150.0,0.00012544,2]
[424204418,1780660232000,-208.6,0.00012598,2]
[424204443,1780660232000,-1690.2577525,0.00013216,2]
[424204412,1780660232000,-500.0,0.00012192,2]
[424204445,1780660232000,-2074.5237642,0.000134,2]
[424204463,1780660232000,-671.50107223,0.000135,2]
[424204462,1780660232000,-4551.22394677,0.000135,2]
[424204465,1780660232000,-158.70286579,0.000135,2]
[424204472,1780660232000,-181.9641366,0.00013589,2]
[424204464,1780660232000,-500.0,0.000135,4]
[424204470,1780660232000,-150.0,0.00013567,2]
[424204469,1780660232000,-150.0,0.00013549,2]
[424204471,1780660232000,-150.0,0.00013579,2]
[424204473,1780660232000,-150.0,0.00013591,2]
[424204475,1780660232000,-250.0,0.00013598,2]
[424204477,1780660232000,-1000.0,0.00013598,2]
[424204476,1780660232000,-1000.0,0.00013598,2]